[Event "Turkish Club Cup 2019"]
[Site "Konya"]
[Date "2019.07.16"]
[Round "1"]
[White "Kinsiz, Onur"]
[Black "Ozkale, Can Barkin"]
[Result "1/2-1/2"]
[ECO "C06"]
[WhiteElo "2210"]
[BlackElo "1729"]
[Annotator "ChessBase"]
[PlyCount "110"]
[EventDate "2019.07.16"]
[EventType "team-tourn"]
[EventCountry "TUR"]
[SourceTitle "playchess.com"]
[Source "ChessBase"]
[SourceQuality "1"]
[TimeControl "5400+30"]

1. e4 {[%emt 0:00:30]} e6 {[%emt 0:00:30]} 2. d4 {[%emt 0:00:00]} d5 {[%emt 0:00:30]} 3. Nd2 {[%emt 0:00:00]} Nf6 {[%emt 0:04:30]} 4. e5 {[%emt 0:00:30]} Nfd7 {[%emt 0:00:30]} 5. Bd3 {[%emt 0:00:30]} c5 {[%emt 0:00:30]} 6. c3 {[%emt 0:00:30]} Nc6 {[%emt 0:00:00]} 7. Ne2 {[%emt 0:00:30]} cxd4 {[%emt 0:00:00]} 8. cxd4 {[%emt 0:00:00]} f6 {[%emt 0:00:30]} 9. exf6 {[%emt 0:01:00]} Nxf6 {[%emt 0:00:30]} 10. Nf3 {[%emt 0:02:30]} Bd6 {[%emt 0:00:30]} 11. O-O {[%emt 0:02:30]} Qc7 {[%emt 0:00:30]} 12. h3 {[%emt 0:03:30]} O-O {[%emt 0:01:30]} 13. Be3 {[%emt 0:00:30]} Nh5 {[%emt 0:03:30]} 14. Nc3 {[%emt 0:18:30]} a6 {[%emt 0:07:30]} 15. Re1 {[%emt 0:31:30]} h6 {[%emt 0:13:30]} 16. Rc1 {[%emt 0:03:30]} Nf4 {[%emt 0:03:30]} 17. Bb1 {[%emt 0:04:30]} Qf7 {[%emt 0:07:30]} 18. Bxf4 {[%emt 0:05:30]} Bxf4 {[%emt 0:00:30]} 19. Qd3 {[%emt 0:04:20]} g5 {[%emt 0:00:30]} 20. Rcd1 {[%emt 0:00:22]} Bd7 {[%emt 0:01:30]} 21. a3 {[%emt 0:01:02]} Rae8 {[%emt 0:06:30]} 22. Re2 {[%emt 0:00:28]} Ne7 {[%emt 0:01:30]} 23. Rde1 {[%emt 0:01:19]} Qf5 {[%emt 0:06:30]} 24. Qd1 {[%emt 0:11:35]} Qf6 {[%emt 0:01:30]} 25. Qd3 {[%emt 0:01:58]} Rf7 {[%emt 0:00:30]} 26. b3 {[%emt 0:05:20]} Ref8 {[%emt 0:01:30]} 27. a4 {[%emt 0:00:04]} h5 {[%emt 0:00:30]} 28. Kh1 {[%emt 0:00:47]} Qh6 {[%emt 0:01:30]} 29. Nd1 {[%emt 0:00:26]} Nf5 {[%emt 0:09:30]} 30. Ne5 {[%emt 0:00:16]} Bxe5 {[%emt 0:00:30]} 31. Rxe5 {[%emt 0:00:03]} Nh4 {[%emt 0:01:30]} 32. Qg3 {[%emt 0:00:58]} Nf5 {[%emt 0:02:30]} 33. Bxf5 {[%emt 0:00:16]} Rxf5 {[%emt 0:00:00]} 34. Nb2 {[%emt 0:00:28]} g4 {[%emt 0:19:54]} 35. Nd3 {[%emt 0:00:57]} Rxe5 {[%emt 0:03:29]} 36. Nxe5 {[%emt 0:00:43]} Bc6 {[%emt 0:00:37]} 37. Kg1 {[%emt 0:00:33]} Qf4 {[%emt 0:00:42]} 38. Qh4 {[%emt 0:00:28]} gxh3 {[%emt 0:00:23]} 39. Qxf4 {[%emt 0:00:35]} Rxf4 {[%emt 0:00:17]} 40. gxh3 {[%emt 0:00:30]} Rxd4 {[%emt 0:01:50]} 41. Nxc6 {[%emt 0:00:36]} bxc6 {[%emt 0:00:30]} 42. Rxe6 {[%emt 0:00:00]} Rd1+ {[%emt 0:00:23]} 43. Kg2 {[%emt 0:00:00]} Rc1 {[%emt 0:00:00]} 44. Re7 {[%emt 0:00:50]} d4 {[%emt 0:01:20]} 45. Rd7 {[%emt 0:00:56]} c5 {[%emt 0:00:18]} 46. h4 {[%emt 0:00:36]} Rc3 {[%emt 0:00:17]} 47. Rc7 {[%emt 0:00:19]} Kf8 {[%emt 0:00:41]} 48. Kf1 {[%emt 0:00:42]} d3 {[%emt 0:00:43]} 49. Ke1 {[%emt 0:00:23]} Rxb3 {[%emt 0:00:43]} 50. Rxc5 {[%emt 0:00:05]} Rb4 {[%emt 0:00:01]} 51. Rxh5 {[%emt 0:01:03]} Rxa4 {[%emt 0:00:15]} 52. Rf5+ {[%emt 0:00:23]} Kg7 {[%emt 0:00:30]} 53. Kd2 {[%emt 0:00:21]} Rxh4 {[%emt 0:01:21]} 54. Kxd3 {[%emt 0:00:05]} Rh1 {[%emt 0:00:00]} 55. Ra5 {[%emt 0:00:16]} Rh6 {[%emt 0:00:19]} 1/2-1/2

[Event "Turkish Club Cup 2019"]
[Site "Konya"]
[Date "2019.07.16"]
[Round "1"]
[White "Ersahin, Bulent"]
[Black "Turan, Seyithan"]
[Result "1-0"]
[ECO "E04"]
[WhiteElo "2179"]
[BlackElo "1705"]
[Annotator "ChessBase"]
[PlyCount "103"]
[EventDate "2019.07.16"]
[EventType "team-tourn"]
[EventCountry "TUR"]
[SourceTitle "playchess.com"]
[Source "ChessBase"]
[SourceQuality "1"]
[TimeControl "5400+30"]

1. Nf3 {[%emt 0:00:30]} c5 {[%emt 0:00:30]} 2. g3 {[%emt 0:00:00]} d5 {[%emt 0:00:30]} 3. Bg2 {[%emt 0:00:00]} Nc6 {[%emt 0:00:00]} 4. d4 {[%emt 0:00:30]} Nf6 {[%emt 0:02:00]} 5. O-O {[%emt 0:00:00]} e6 {[%emt 0:01:30]} 6. c4 {[%emt 0:02:00]} dxc4 {[%emt 0:07:30]} 7. Na3 {[%emt 0:05:30]} cxd4 {[%emt 0:05:30]} 8. Nxc4 {[%emt 0:00:30]} Be7 {[%emt 0:04:30]} 9. Bf4 {[%emt 0:00:30]} Nd5 {[%emt 0:07:30]} 10. Nxd4 {[%emt 0:10:30]} Nxf4 {[%emt 0:06:30]} 11. Nxc6 {[%emt 0:03:30]} Qxd1 {[%emt 0:02:30]} 12. Rfxd1 {[%emt 0:00:30]} Nxg2 {[%emt 0:02:30]} 13. Nxe7 {[%emt 0:01:30]} Kxe7 {[%emt 0:00:30]} 14. Kxg2 {[%emt 0:00:30]} f6 {[%emt 0:05:30]} 15. Rac1 {[%emt 0:13:30]} Bd7 {[%emt 0:04:30]} 16. f3 {[%emt 0:07:30]} Rac8 {[%emt 0:03:30]} 17. e4 {[%emt 0:03:30]} Rhd8 {[%emt 0:05:30]} 18. Kf2 {[%emt 0:00:30]} Bb5 {[%emt 0:03:30]} 19. Rxd8 {[%emt 0:04:30]} Rxd8 {[%emt 0:12:30]} 20. Ke3 {[%emt 0:04:30]} Rc8 {[%emt 0:01:30]} 21. b3 {[%emt 0:01:30]} Bxc4 {[%emt 0:02:30]} 22. bxc4 {[%emt 0:00:00]} Kd6 {[%emt 0:01:25]} 23. Rd1+ {[%emt 0:03:00]} Kc6 {[%emt 0:00:15]} 24. f4 {[%emt 0:02:30]} Rc7 {[%emt 0:02:05]} 25. Rd8 {[%emt 0:02:30]} Kc5 {[%emt 0:02:07]} 26. Re8 {[%emt 0:03:30]} Kxc4 {[%emt 0:03:41]} 27. Rxe6 {[%emt 0:03:30]} Rd7 {[%emt 0:01:32]} 28. Re8 {[%emt 0:02:30]} Rd3+ {[%emt 0:01:43]} 29. Ke2 {[%emt 0:01:30]} Ra3 {[%emt 0:02:52]} 30. Re7 {[%emt 0:01:30]} b5 {[%emt 0:01:58]} 31. Rxg7 {[%emt 0:01:30]} Kd4 {[%emt 0:05:07]} 32. Rxh7 {[%emt 0:04:49]} Kxe4 {[%emt 0:01:24]} 33. Re7+ {[%emt 0:00:05]} Kf5 {[%emt 0:00:00]} 34. Rb7 {[%emt 0:01:40]} Rxa2+ {[%emt 0:00:16]} 35. Kf3 {[%emt 0:01:15]} Ra3+ {[%emt 0:00:02]} 36. Kg2 {[%emt 0:00:52]} a6 {[%emt 0:00:47]} 37. h4 {[%emt 0:01:50]} Kg4 {[%emt 0:02:09]} 38. Rg7+ {[%emt 0:00:06]} Kh5 {[%emt 0:00:05]} 39. Kh3 {[%emt 0:00:15]} b4 {[%emt 0:00:34]} 40. f5 {[%emt 0:00:53]} Kh6 {[%emt 0:00:23]} 41. Rg6+ {[%emt 0:00:30]} Kh7 {[%emt 0:00:07]} 42. Rxf6 {[%emt 0:00:00]} a5 {[%emt 0:01:00]} 43. Rb6 {[%emt 0:00:56]} b3 {[%emt 0:00:34]} 44. h5 {[%emt 0:03:36]} a4 {[%emt 0:00:44]} 45. Kh4 {[%emt 0:02:39]} Ra2 {[%emt 0:00:19]} 46. g4 {[%emt 0:02:12]} Rf2 {[%emt 0:00:45]} 47. Rb7+ {[%emt 0:00:57]} Kg8 {[%emt 0:00:23]} 48. Kg5 {[%emt 0:00:59]} b2 {[%emt 0:00:33]} 49. Kg6 {[%emt 0:02:36]} Kf8 {[%emt 0:00:12]} 50. h6 {[%emt 0:00:21]} a3 {[%emt 0:00:20]} 51. f6 {[%emt 0:01:45]} Ke8 {[%emt 0:01:21]} 52. h7 {[%emt 0:00:08]} 1-0

[Event "Turkish Club Cup 2019"]
[Site "Konya"]
[Date "2019.07.16"]
[Round "1"]
[White "Guven, Oguz Kagan"]
[Black "Konusoglu, Kemal Safa"]
[Result "1/2-1/2"]
[ECO "B31"]
[WhiteElo "2142"]
[BlackElo "1800"]
[Annotator "NA"]
[PlyCount "70"]
[EventDate "2019.07.16"]
[EventType "team-tourn"]
[EventCountry "TUR"]
[SourceTitle "playchess.com"]
[Source "ChessBase"]
[SourceQuality "1"]
[TimeControl "5400+30"]

1. e4 {[%emt 0:00:30]} c5 {[%emt 0:00:30]} 2. Nf3 {[%emt 0:00:30]} Nc6 {[%emt 0:00:00]} 3. Bb5 {[%emt 0:00:00]} g6 {[%emt 0:01:00]} 4. O-O {[%emt 0:01:00]} Bg7 {[%emt 0:01:30]} 5. Re1 {[%emt 0:05:30]} Nf6 {[%emt 0:00:30]} 6. Nc3 {[%emt 0:01:30]} O-O {[%emt 0:08:30]} 7. e5 {[%emt 0:00:30]} Ne8 {[%emt 0:00:30]} 8. d3 {[%emt 0:04:30]} Nc7 {[%emt 0:00:30]} 9. Bxc6 {[%emt 0:00:30]} dxc6 {[%emt 0:00:30]} 10. Ne4 {[%emt 0:00:00]} Ne6 {[%emt 0:00:30]} 11. Be3 {[%emt 0:01:00]} b6 {[%emt 0:00:00]} 12. a4 {[%emt 0:00:30]} Nd4 {[%emt 0:06:00]} 13. Nxd4 {[%emt 0:06:30]} cxd4 {[%emt 0:03:30]} 14. Bf4 {[%emt 0:00:00]} Qd5 {[%emt 0:04:30]} 15. Nd2 {[%emt 0:07:00]} Be6 {[%emt 0:01:30]} 16. b3 {[%emt 0:05:30]} Rfc8 {[%emt 0:10:30]} 17. h4 {[%emt 0:17:30]} h6 {[%emt 0:11:30]} 18. Qf3 {[%emt 0:11:30]} Qxf3 {[%emt 0:04:30]} 19. gxf3 {[%emt 0:00:30]} c5 {[%emt 0:00:00]} 20. Kg2 {[%emt 0:00:30]} Bd5 {[%emt 0:02:00]} 21. h5 {[%emt 0:01:30]} g5 {[%emt 0:00:30]} 22. Bh2 {[%emt 0:00:30]} Rc6 {[%emt 0:04:30]} 23. Kh3 {[%emt 0:02:30]} Be6+ {[%emt 0:02:30]} 24. Kg2 {[%emt 0:01:30]} Kh7 {[%emt 0:00:30]} 25. Ne4 {[%emt 0:05:30]} Rg8 {[%emt 0:00:30]} 26. Re2 {[%emt 0:04:30]} Bd5 {[%emt 0:00:30]} 27. Kh3 {[%emt 0:01:30]} Be6+ {[%emt 0:01:30]} 28. Kg2 {[%emt 0:00:30]} Bh8 {[%emt 0:00:00]} 29. Bg3 {[%emt 0:01:30]} Bd5 {[%emt 0:00:00]} 30. Kh2 {[%emt 0:01:05]} Re6 {[%emt 0:01:30]} 31. Rae1 {[%emt 0:01:57]} Bxe5 {[%emt 0:03:30]} 32. Nxg5+ {[%emt 0:01:40]} Rxg5 {[%emt 0:01:30]} 33. Rxe5 {[%emt 0:00:01]} Rgxe5 {[%emt 0:19:16]} 34. Rxe5 {[%emt 0:00:24]} Rxe5 {[%emt 0:01:22]} 35. Bxe5 {[%emt 0:00:30]} Bxf3 {[%emt 0:00:30]} 1/2-1/2

[Event "Turkish Club Cup 2019"]
[Site "Konya"]
[Date "2019.07.16"]
[Round "1"]
[White "Gulden, Egemen"]
[Black "Ucar, Mehmet Ali"]
[Result "1-0"]
[ECO "B26"]
[WhiteElo "2135"]
[BlackElo "1182"]
[Annotator "NA"]
[PlyCount "41"]
[EventDate "2019.07.16"]
[EventType "team-tourn"]
[EventCountry "TUR"]
[SourceTitle "playchess.com"]
[Source "ChessBase"]
[SourceQuality "1"]
[TimeControl "5400+30"]

1. e4 {[%emt 0:00:30]} c5 {[%emt 0:00:30]} 2. Nc3 {[%emt 0:00:30]} d6 {[%emt 0:00:30]} 3. g3 {[%emt 0:00:00]} Nc6 {[%emt 0:00:30]} 4. Bg2 {[%emt 0:00:00]} Nf6 {[%emt 0:00:30]} 5. h3 {[%emt 0:00:30]} g6 {[%emt 0:00:30]} 6. d3 {[%emt 0:00:30]} Bg7 {[%emt 0:00:30]} 7. Be3 {[%emt 0:00:00]} O-O {[%emt 0:01:30]} 8. Nge2 {[%emt 0:01:00]} a6 {[%emt 0:01:30]} 9. O-O {[%emt 0:00:30]} b5 {[%emt 0:01:30]} 10. Qd2 {[%emt 0:00:30]} Bb7 {[%emt 0:01:30]} 11. f4 {[%emt 0:00:30]} e6 {[%emt 0:06:30]} 12. g4 {[%emt 0:01:30]} Qc7 {[%emt 0:16:30]} 13. f5 {[%emt 0:03:30]} Nd7 {[%emt 0:15:30]} 14. Bh6 {[%emt 0:03:30]} Rfe8 {[%emt 0:09:30]} 15. Bxg7 {[%emt 0:03:30]} Kxg7 {[%emt 0:00:30]} 16. Qf4 {[%emt 0:02:30]} Nde5 {[%emt 0:06:30]} 17. f6+ {[%emt 0:01:30]} Kh8 {[%emt 0:00:30]} 18. Qh6 {[%emt 0:00:00]} Rg8 {[%emt 0:00:30]} 19. g5 {[%emt 0:00:00]} Qd8 {[%emt 0:03:30]} 20. Rf4 {[%emt 0:00:30]} Qf8 {[%emt 0:00:00]} 21. Qxh7+ {[%emt 0:00:00]} 1-0

[Event "Turkish Club Cup 2019"]
[Site "Konya"]
[Date "2019.07.16"]
[Round "1"]
[White "Ozdover, Mustafa Berkay"]
[Black "Yigiter, Fatih"]
[Result "1-0"]
[ECO "D63"]
[WhiteElo "2130"]
[BlackElo "1585"]
[Annotator "NA"]
[PlyCount "83"]
[EventDate "2019.07.16"]
[EventType "team-tourn"]
[EventCountry "TUR"]
[SourceTitle "playchess.com"]
[Source "ChessBase"]
[SourceQuality "1"]
[TimeControl "5400+30"]

1. d4 {[%emt 0:00:30]} d5 {[%emt 0:00:30]} 2. c4 {[%emt 0:00:30]} e6 {[%emt 0:00:00]} 3. Nf3 {[%emt 0:00:30]} Nf6 {[%emt 0:01:00]} 4. Nc3 {[%emt 0:00:30]} Be7 {[%emt 0:00:30]} 5. Bg5 {[%emt 0:06:30]} Nbd7 {[%emt 0:02:30]} 6. e3 {[%emt 0:01:30]} a6 {[%emt 0:00:30]} 7. cxd5 {[%emt 0:02:30]} exd5 {[%emt 0:03:30]} 8. Bd3 {[%emt 0:00:30]} h6 {[%emt 0:01:30]} 9. Bh4 {[%emt 0:01:30]} O-O {[%emt 0:00:30]} 10. Rc1 {[%emt 0:00:30]} c6 {[%emt 0:01:30]} 11. Bg3 {[%emt 0:02:30]} Re8 {[%emt 0:02:30]} 12. O-O {[%emt 0:00:30]} Nh5 {[%emt 0:00:30]} 13. Nxd5 {[%emt 0:00:30]} Nxg3 {[%emt 0:01:30]} 14. Nxe7+ {[%emt 0:00:30]} Qxe7 {[%emt 0:00:00]} 15. hxg3 {[%emt 0:00:00]} Nf6 {[%emt 0:00:00]} 16. Qc2 {[%emt 0:06:00]} Be6 {[%emt 0:02:30]} 17. a3 {[%emt 0:01:30]} Rad8 {[%emt 0:06:30]} 18. Rfe1 {[%emt 0:05:30]} Qc7 {[%emt 0:07:30]} 19. b4 {[%emt 0:06:30]} Qd6 {[%emt 0:04:30]} 20. Ne5 {[%emt 0:14:30]} Nd7 {[%emt 0:04:30]} 21. Nxd7 {[%emt 0:05:30]} Qxd7 {[%emt 0:03:30]} 22. a4 {[%emt 0:04:30]} Rc8 {[%emt 0:00:30]} 23. Qb1 {[%emt 0:04:30]} Qd6 {[%emt 0:06:30]} 24. Rc3 {[%emt 0:02:30]} Rc7 {[%emt 0:01:30]} 25. Rec1 {[%emt 0:00:30]} Rec8 {[%emt 0:00:30]} 26. Qb2 {[%emt 0:09:30]} Kf8 {[%emt 0:12:30]} 27. Be2 {[%emt 0:02:30]} Qd7 {[%emt 0:09:30]} 28. Bf3 {[%emt 0:04:19]} Qd6 {[%emt 0:06:30]} 29. Rc5 {[%emt 0:02:06]} b6 {[%emt 0:03:17]} 30. R5c3 {[%emt 0:00:27]} c5 {[%emt 0:01:06]} 31. bxc5 {[%emt 0:00:53]} bxc5 {[%emt 0:00:30]} 32. dxc5 {[%emt 0:00:00]} Qe5 {[%emt 0:03:48]} 33. Qb6 {[%emt 0:01:06]} Bd5 {[%emt 0:02:01]} 34. Bxd5 {[%emt 0:04:05]} Qxd5 {[%emt 0:00:37]} 35. c6 {[%emt 0:01:20]} a5 {[%emt 0:01:07]} 36. Qb5 {[%emt 0:01:51]} Qd2 {[%emt 0:00:24]} 37. Rc5 {[%emt 0:02:32]} Qd6 {[%emt 0:02:29]} 38. Qxa5 {[%emt 0:00:15]} Rxc6 {[%emt 0:01:12]} 39. Rxc6 {[%emt 0:00:30]} Rxc6 {[%emt 0:00:00]} 40. Qa8+ {[%emt 0:00:05]} Ke7 {[%emt 0:00:18]} 41. Qxc6 {[%emt 0:00:00]} Qd2 {[%emt 0:00:40]} 42. a5 {[%emt 0:00:11]} 1-0

[Event "Turkish Club Cup 2019"]
[Site "Konya"]
[Date "2019.07.16"]
[Round "1"]
[White "Mecit, Emre"]
[Black "Uygur, Sinan"]
[Result "1/2-1/2"]
[ECO "C96"]
[WhiteElo "2065"]
[BlackElo "1899"]
[Annotator "NA"]
[PlyCount "82"]
[EventDate "2019.07.16"]
[EventType "team-tourn"]
[EventCountry "TUR"]
[SourceTitle "playchess.com"]
[Source "ChessBase"]
[SourceQuality "1"]
[TimeControl "5400+30"]

1. e4 {[%emt 0:00:30]} e5 {[%emt 0:00:30]} 2. Nf3 {[%emt 0:00:30]} Nc6 {[%emt 0:00:30]} 3. Bb5 {[%emt 0:00:30]} a6 {[%emt 0:00:00]} 4. Ba4 {[%emt 0:00:00]} Nf6 {[%emt 0:00:00]} 5. O-O {[%emt 0:00:00]} Be7 {[%emt 0:00:00]} 6. Re1 {[%emt 0:00:30]} b5 {[%emt 0:00:00]} 7. Bb3 {[%emt 0:00:30]} d6 {[%emt 0:00:00]} 8. c3 {[%emt 0:00:00]} O-O {[%emt 0:00:00]} 9. h3 {[%emt 0:00:00]} Na5 {[%emt 0:00:00]} 10. Bc2 {[%emt 0:00:00]} c5 {[%emt 0:00:00]} 11. d4 {[%emt 0:00:00]} Nd7 {[%emt 0:00:30]} 12. Nbd2 {[%emt 0:00:30]} exd4 {[%emt 0:00:30]} 13. cxd4 {[%emt 0:00:30]} Nc6 {[%emt 0:00:30]} 14. Nf1 {[%emt 0:00:30]} cxd4 {[%emt 0:00:00]} 15. Nxd4 {[%emt 0:00:30]} Nxd4 {[%emt 0:00:00]} 16. Qxd4 {[%emt 0:00:30]} Ne5 {[%emt 0:00:00]} 17. Qd1 {[%emt 0:00:30]} Bf6 {[%emt 0:04:00]} 18. Ne3 {[%emt 0:08:30]} Be6 {[%emt 0:34:30]} 19. Nd5 {[%emt 0:08:30]} Bxd5 {[%emt 0:01:30]} 20. Qxd5 {[%emt 0:00:30]} Rc8 {[%emt 0:00:30]} 21. Bb3 {[%emt 0:00:30]} Rc5 {[%emt 0:00:30]} 22. Qd1 {[%emt 0:00:30]} Nc4 {[%emt 0:00:30]} 23. Rb1 {[%emt 0:09:30]} d5 {[%emt 0:19:30]} 24. Bc2 {[%emt 0:08:30]} dxe4 {[%emt 0:19:58]} 25. Bxe4 {[%emt 0:03:30]} Qxd1 {[%emt 0:07:01]} 26. Rxd1 {[%emt 0:00:30]} Re8 {[%emt 0:00:00]} 27. Bf3 {[%emt 0:04:30]} b4 {[%emt 0:02:45]} 28. Kf1 {[%emt 0:06:30]} h6 {[%emt 0:01:17]} 29. Be2 {[%emt 0:12:30]} a5 {[%emt 0:02:07]} 30. b3 {[%emt 0:06:30]} Na3 {[%emt 0:00:29]} 31. Bxa3 {[%emt 0:00:30]} bxa3 {[%emt 0:00:01]} 32. Bc4 {[%emt 0:00:30]} Rc7 {[%emt 0:03:41]} 33. Rd5 {[%emt 0:02:30]} Bc3 {[%emt 0:01:21]} 34. g4 {[%emt 0:02:30]} Bb4 {[%emt 0:01:24]} 35. Rbd1 {[%emt 0:00:30]} Rce7 {[%emt 0:00:33]} 36. Kg2 {[%emt 0:01:30]} g6 {[%emt 0:01:25]} 37. f4 {[%emt 0:02:30]} Re1 {[%emt 0:01:32]} 38. f5 {[%emt 0:00:30]} Rxd1 {[%emt 0:00:29]} 39. Rxd1 {[%emt 0:01:30]} gxf5 {[%emt 0:00:30]} 40. gxf5 {[%emt 0:00:30]} Kg7 {[%emt 0:00:00]} 41. Rd7 {[%emt 0:00:00]} Re7 {[%emt 0:00:00]} 1/2-1/2

[Event "Turkish Club Cup 2019"]
[Site "Konya"]
[Date "2019.07.16"]
[Round "1"]
[White "Guner, Bulent"]
[Black "Bingologlu, Furkan"]
[Result "1/2-1/2"]
[ECO "A30"]
[WhiteElo "1979"]
[BlackElo "1665"]
[Annotator "NA"]
[PlyCount "91"]
[EventDate "2019.07.16"]
[EventType "team-tourn"]
[EventCountry "TUR"]
[SourceTitle "playchess.com"]
[Source "ChessBase"]
[SourceQuality "1"]
[TimeControl "5400+30"]

1. d4 {[%emt 0:00:30]} Nf6 {[%emt 0:00:30]} 2. Nf3 {[%emt 0:00:00]} e6 {[%emt 0:00:30]} 3. g3 {[%emt 0:01:00]} b6 {[%emt 0:00:30]} 4. Bg2 {[%emt 0:00:00]} Bb7 {[%emt 0:00:00]} 5. O-O {[%emt 0:00:00]} c5 {[%emt 0:01:00]} 6. c4 {[%emt 0:02:30]} cxd4 {[%emt 0:00:30]} 7. Qxd4 {[%emt 0:00:30]} Bc5 {[%emt 0:04:30]} 8. Qf4 {[%emt 0:07:30]} O-O {[%emt 0:04:30]} 9. Nc3 {[%emt 0:01:30]} d5 {[%emt 0:10:30]} 10. Rd1 {[%emt 0:07:30]} Qe7 {[%emt 0:03:30]} 11. cxd5 {[%emt 0:03:30]} Nxd5 {[%emt 0:03:30]} 12. Nxd5 {[%emt 0:03:30]} exd5 {[%emt 0:02:30]} 13. e3 {[%emt 0:05:30]} Na6 {[%emt 0:08:30]} 14. a3 {[%emt 0:11:30]} Bd6 {[%emt 0:01:30]} 15. Qh4 {[%emt 0:05:30]} Nc5 {[%emt 0:04:30]} 16. Qxe7 {[%emt 0:02:30]} Bxe7 {[%emt 0:00:00]} 17. Nd4 {[%emt 0:02:30]} Bf6 {[%emt 0:03:00]} 18. Rb1 {[%emt 0:08:30]} Rfd8 {[%emt 0:03:30]} 19. b3 {[%emt 0:03:30]} Ne4 {[%emt 0:09:30]} 20. Bb2 {[%emt 0:01:30]} Rac8 {[%emt 0:01:30]} 21. Bh3 {[%emt 0:06:30]} Rc5 {[%emt 0:10:30]} 22. Rbc1 {[%emt 0:03:30]} Bc8 {[%emt 0:10:26]} 23. Bg2 {[%emt 0:02:30]} Bb7 {[%emt 0:02:10]} 24. f3 {[%emt 0:06:29]} Nd6 {[%emt 0:01:21]} 25. Bh3 {[%emt 0:01:46]} Bc8 {[%emt 0:03:31]} 26. Bf1 {[%emt 0:03:04]} Bd7 {[%emt 0:02:58]} 27. Ba6 {[%emt 0:02:32]} Re8 {[%emt 0:02:57]} 28. Kf2 {[%emt 0:00:37]} g6 {[%emt 0:01:54]} 29. Bc3 {[%emt 0:00:40]} Nf5 {[%emt 0:01:11]} 30. Nxf5 {[%emt 0:03:20]} Rxc3 {[%emt 0:00:14]} 31. Rxc3 {[%emt 0:00:39]} Bxc3 {[%emt 0:00:22]} 32. Nd6 {[%emt 0:02:11]} Rd8 {[%emt 0:01:25]} 33. Nb5 {[%emt 0:02:26]} Bxb5 {[%emt 0:00:22]} 34. Bxb5 {[%emt 0:00:01]} d4 {[%emt 0:00:26]} 35. e4 {[%emt 0:00:03]} Bb2 {[%emt 0:00:51]} 36. a4 {[%emt 0:00:15]} Rc8 {[%emt 0:01:14]} 37. Bc4 {[%emt 0:00:35]} Ba3 {[%emt 0:00:25]} 38. Ke2 {[%emt 0:00:14]} Bc5 {[%emt 0:01:10]} 39. Kd3 {[%emt 0:00:12]} a5 {[%emt 0:00:00]} 40. e5 {[%emt 0:00:28]} Kg7 {[%emt 0:00:10]} 41. f4 {[%emt 0:01:18]} h5 {[%emt 0:01:11]} 42. Ke4 {[%emt 0:00:21]} Rd8 {[%emt 0:00:37]} 43. Rd3 {[%emt 0:00:37]} f6 {[%emt 0:00:25]} 44. e6 {[%emt 0:00:30]} Kf8 {[%emt 0:01:17]} 45. h4 {[%emt 0:00:14]} Ke7 {[%emt 0:00:18]} 46. Rf3 {[%emt 0:01:17]} 1/2-1/2

[Event "Turkish Club Cup 2019"]
[Site "Konya"]
[Date "2019.07.16"]
[Round "1"]
[White "Kul, Ozdemir Efe"]
[Black "Kanza, Fazil"]
[Result "1-0"]
[ECO "A00"]
[WhiteElo "1974"]
[BlackElo "1462"]
[Annotator "NA"]
[PlyCount "61"]
[EventDate "2019.07.16"]
[EventType "team-tourn"]
[EventCountry "TUR"]
[SourceTitle "playchess.com"]
[Source "ChessBase"]
[SourceQuality "1"]
[TimeControl "5400+30"]

1. g3 {[%emt 0:00:30]} e5 {[%emt 0:01:30]} 2. Bg2 {[%emt 0:00:30]} d5 {[%emt 0:00:30]} 3. d3 {[%emt 0:00:30]} Nf6 {[%emt 0:05:30]} 4. a3 {[%emt 0:02:30]} Bc5 {[%emt 0:01:30]} 5. e3 {[%emt 0:01:30]} Bg4 {[%emt 0:02:30]} 6. Ne2 {[%emt 0:00:30]} O-O {[%emt 0:04:30]} 7. h3 {[%emt 0:00:30]} Bh5 {[%emt 0:02:30]} 8. b4 {[%emt 0:00:30]} Bb6 {[%emt 0:02:30]} 9. Bb2 {[%emt 0:00:30]} Qd6 {[%emt 0:02:30]} 10. c4 {[%emt 0:05:30]} c5 {[%emt 0:01:30]} 11. g4 {[%emt 0:01:30]} Bg6 {[%emt 0:00:30]} 12. d4 {[%emt 0:02:30]} exd4 {[%emt 0:01:30]} 13. exd4 {[%emt 0:00:30]} cxb4 {[%emt 0:06:30]} 14. c5 {[%emt 0:00:30]} Bxc5 {[%emt 0:00:30]} 15. dxc5 {[%emt 0:00:00]} Qe6 {[%emt 0:03:30]} 16. O-O {[%emt 0:06:00]} bxa3 {[%emt 0:02:30]} 17. Nxa3 {[%emt 0:00:30]} Ne4 {[%emt 0:03:30]} 18. Nf4 {[%emt 0:01:30]} Qc6 {[%emt 0:05:30]} 19. Nxd5 {[%emt 0:01:30]} Re8 {[%emt 0:03:30]} 20. Qd4 {[%emt 0:09:30]} f6 {[%emt 0:00:00]} 21. Rae1 {[%emt 0:00:00]} Re5 {[%emt 0:21:00]} 22. Nf4 {[%emt 0:05:00]} Qxc5 {[%emt 0:16:13]} 23. Nxg6 {[%emt 0:01:30]} hxg6 {[%emt 0:03:44]} 24. Bxe4 {[%emt 0:00:30]} Qe7 {[%emt 0:00:58]} 25. Qc4+ {[%emt 0:00:30]} Kh7 {[%emt 0:00:45]} 26. f4 {[%emt 0:02:30]} f5 {[%emt 0:02:15]} 27. gxf5 {[%emt 0:01:30]} Rc5 {[%emt 0:01:22]} 28. fxg6+ {[%emt 0:00:00]} Kh8 {[%emt 0:01:05]} 29. Qf7 {[%emt 0:01:00]} Qxf7 {[%emt 0:02:08]} 30. gxf7 {[%emt 0:00:30]} Nc6 {[%emt 0:00:00]} 31. Bxc6 {[%emt 0:00:00]} 1-0